bitfinex-derivatives/quotes_ETHF0:USTF0_20250321
["timestamp","ask_amount","ask_price","bid_price","bid_amount"]
[1742594725896,9.61051,1973.1,1973.0,2.35386]
[1742594726101,10.53746319,1973.1,1973.0,1.3398]
[1742594726598,10.53746319,1973.1,1973.0,2.35386]
[1742594727099,10.53746319,1973.1,1973.0,1.3398]
[1742594727897,1.01412,1972.9,1972.8,3.69862391]
[1742594728093,4.36912,1972.9,1972.8,3.69862391]
[1742594728793,4.36912,1972.9,1972.8,3.69865391]
[1742594728794,7.57692,1972.9,1972.8,3.69865391]
[1742594728995,8.50414572,1972.9,1972.8,2.68448391]
[1742594729194,9.86944572,1972.9,1972.8,3.97648391]
[1742594729397,9.86944572,1972.9,1972.8,2.96217]
[1742594729601,1.01411,1973.0,1972.9,1.01412]
[1742594729792,2.37941,1973.0,1972.9,2.30612]
[1742594730300,3.30655162,1973.0,1972.9,2.30612]
[1742594732698,3.30655162,1973.0,1972.9,1.292]
[1742594733199,1.01417,1972.8,1972.7,0.00759648]
[1742594733399,4.37117,1972.8,1972.7,1.35029648]
[1742594733595,5.29831162,1972.8,1972.7,1.35029648]
[1742594733800,7.35351162,1972.8,1972.7,1.35029648]
[1742594734601,7.35351162,1972.8,1972.7,2.36451648]
[1742594735300,6.33934162,1972.8,1972.7,2.36451648]
[1742594735501,7.35351162,1972.8,1972.7,2.36451648]
[1742594736802,7.35351162,1972.8,1972.7,1.35029648]
[1742594737102,7.35291631,1972.8,1972.7,1.35029648]
[1742594737304,7.35291631,1972.8,1972.7,0.00759648]
[1742594737604,7.43273378,1972.8,1972.7,0.00759648]
[1742594739201,7.43273378,1972.8,1972.7,1.02181648]
[1742594739392,5.77607,1972.8,1972.7,1.02181648]
[1742594739594,5.77607,1972.8,1972.7,1.70401648]
[1742594740899,5.77607,1972.8,1972.7,0.68979648]
[1742594741099,5.77607,1972.8,1972.7,1.70401648]
[1742594741301,5.77607,1972.8,1972.7,3.00531648]
[1742594742409,5.77607,1972.8,1972.7,1.99109648]
[1742594742701,5.77607,1972.8,1972.7,1.30889648]
[1742594743601,5.77607,1972.8,1972.7,2.32311648]
[1742594744208,6.70178213,1972.8,1972.7,2.32311648]
[1742594744709,6.70178213,1972.8,1972.7,1.30889648]
[1742594745008,6.70178213,1972.8,1972.7,2.32311648]
[1742594745307,6.70178213,1972.8,1972.7,1.30889648]
[1742594745609,6.70178213,1972.8,1972.7,2.32311648]
[1742594747507,6.70178213,1972.8,1972.7,1.30889648]
[1742594747805,6.70178213,1972.8,1972.7,2.32311648]
[1742594748106,5.28188213,1972.8,1972.7,2.32311648]
[1742594748900,4.26771213,1972.8,1972.7,2.32311648]
[1742594749298,3.342,1972.8,1972.7,2.32311648]
[1742594749498,4.22196,1972.9,1972.8,1.01417]
[1742594749698,0.92683639,1972.9,1972.8,3.75477]
[1742594749909,46.873,1973.0,1972.9,1.01412]
[1742594750208,46.873,1973.0,1972.9,2.42452]
[1742594750404,1.01395,1973.3,1973.2,1.01391]
[1742594750605,1.94090721,1973.3,1973.2,1.01396]
[1742594751111,1.94090721,1973.3,1973.2,2.33086]
[1742594751712,1.94089721,1973.3,1973.2,2.33086]
[1742594752410,1.01391,1973.3,1973.2,2.33086]
[1742594753204,1.01391,1973.3,1973.2,1.3169]
[1742594753410,3.31751141,1973.3,1973.2,1.3169]
[1742594753710,1.01406,1973.0,1972.9,3.12227]
[1742594753914,4.36206,1973.0,1972.9,2.1082]
[1742594754410,5.66006,1973.0,1972.9,3.12232]
[1742594757013,5.66006,1973.0,1972.9,2.1082]
[1742594757202,5.66006,1973.0,1972.9,1.4057]
[1742594757203,6.58710097,1973.0,1972.9,1.4057]
[1742594757402,1.01417,1972.8,1972.7,0.00759648]
[1742594757603,4.35817,1972.8,1972.7,0.00759648]
[1742594757812,5.28521097,1972.8,1972.7,0.00759648]
[1742594758006,5.95581097,1972.8,1972.7,0.00759648]
[1742594758416,6.03563858,1972.8,1972.7,0.00759648]
[1742594758612,7.34093858,1972.8,1972.7,1.35569648]
[1742594759515,7.26111097,1972.8,1972.7,1.35569648]
[1742594760519,7.34094002,1972.8,1972.7,1.35569648]
[1742594761910,7.34094002,1972.8,1972.7,0.00759648]
[1742594762816,1.01422,1972.7,1972.6,1.4077]
[1742594763113,2.53568,1972.6,1972.0,2.02848391]
[1742594763308,1.01448,1972.2,1972.1,2.34242]
[1742594763513,4.35648,1972.2,1972.1,1.3279]
[1742594763709,5.71108,1972.2,1972.1,1.3279]
[1742594764212,6.63740347,1972.2,1972.1,1.3279]
[1742594764414,7.31600347,1972.2,1972.1,1.3279]
[1742594764620,7.39580729,1972.2,1972.1,1.3279]
[1742594765019,7.31600347,1972.2,1972.1,1.3279]
[1742594765220,7.3958078,1972.2,1972.1,1.3279]
[1742594765717,7.39580675,1972.2,1972.1,1.3279]
[1742594765916,7.39580602,1972.2,1972.1,1.3279]
[1742594766111,7.31600347,1972.2,1972.1,1.3279]
[1742594766310,6.38968,1972.2,1972.1,1.3279]
[1742594766619,7.3145986,1972.2,1972.1,1.3279]
[1742594766919,5.71108,1972.2,1972.1,1.3279]
[1742594768618,4.22983648,1972.3,1972.2,1.01448]
[1742594768820,7.56483648,1972.3,1972.2,1.01448]
[1742594769117,4.22983648,1972.3,1972.2,1.01448]
[1742594769320,7.56383648,1972.3,1972.2,1.01448]
[1742594769519,0.00759648,1972.3,1972.2,1.01448]
[1742594769717,1.02201648,1972.3,1972.2,1.01448]
[1742594769922,0.00759648,1972.3,1972.2,1.01448]
[1742594773026,1.01448,1972.2,1972.1,2.34238]
[1742594773322,4.34948,1972.2,1972.1,1.3279]
[1742594773522,5.04248,1972.2,1972.1,1.3279]
[1742594773730,6.45138,1972.2,1972.1,1.3279]
[1742594774118,6.45138,1972.2,1972.0,1.37829648]
[1742594774119,1.01453,1972.1,1972.0,0.00759648]
[1742594774319,5.63123,1972.1,1972.0,1.29349648]
[1742594776023,5.63123,1972.1,1972.0,0.00759648]
[1742594776228,5.71103085,1972.1,1972.0,0.00759648]
[1742594776822,5.71103269,1972.1,1972.0,0.00759648]
[1742594778838,1.01458,1972.0,1971.9,1.3489]
[1742594779138,5.72708269,1972.0,1971.9,1.3489]
[1742594779437,5.72708269,1972.0,1971.9,0.94997056]
[1742594779643,6.38488269,1972.0,1971.9,0.94997056]
[1742594781635,6.38487776,1972.0,1971.9,0.94997056]
[1742594781836,1.01463,1971.9,1971.8,0.00759648]
[1742594782035,5.68332713,1971.9,1971.8,0.00759648]
[1742594786149,6.60789331,1971.9,1971.8,0.00759648]
[1742594786545,6.60789504,1971.9,1971.8,0.00759648]
[1742594787144,6.60789504,1971.9,1971.8,1.29729648]
[1742594787342,3.40009504,1971.9,1971.8,1.29729648]
[1742594787644,6.60789504,1971.9,1971.8,1.29729648]
[1742594788643,54.21439504,1971.9,1971.8,0.00759648]
[1742594792145,1.01479,1971.6,1971.5,0.6552]
[1742594792347,7.61738886,1971.6,1971.5,1.9752]
[1742594792549,8.54195504,1971.6,1971.5,1.9752]
[1742594792848,8.46215618,1971.6,1971.5,1.9752]
[1742594793151,9.95184429,1971.6,1971.5,1.9752]
[1742594794946,9.95184429,1971.6,1971.4,0.00759648]
[1742594794947,1.01484,1971.5,1971.4,0.00759648]
[1742594795143,4.1277638,1971.5,1971.4,0.00759648]
[1742594795847,4.12776759,1971.5,1971.4,0.00759648]
[1742594796153,4.12776779,1971.5,1971.4,0.00759648]
[1742594797644,3.42986779,1971.5,1971.4,0.00759648]
[1742594797846,1.01484,1971.5,1971.4,1.71408648]
[1742594798043,10.19062,1971.6,1971.5,1.01484]
[1742594798251,6.5288,1971.6,1971.5,3.13414]
[1742594798452,3.2078,1971.8,1971.6,1.01476]
[1742594798645,3.2078,1971.8,1971.5,2.1193]
[1742594798646,4.22252,1971.8,1971.7,1.01473]
[1742594798854,47.91467,1971.9,1971.8,1.01468]
[1742594799051,51.23867,1971.9,1971.8,1.01468]
[1742594799648,1.01472,1971.8,1971.7,1.01469]
[1742594799946,1.01472,1971.8,1971.7,1.67819]
[1742594801351,54.44645,1971.9,1971.8,1.01468]
[1742594801554,54.44645,1971.9,1971.8,1.68118]
[1742594801855,54.44645,1971.9,1971.8,0.6665]
[1742594802056,54.44645,1971.9,1971.8,1.68118]
[1742594804157,54.44645,1971.9,1971.8,0.6665]
[1742594804359,55.37321759,1971.9,1971.8,0.6665]
[1742594805458,55.37321759,1971.9,1971.8,1.68118]
[1742594808460,55.37321759,1971.9,1971.8,0.6665]
[1742594810161,55.37321759,1971.9,1971.8,1.68118]
[1742594813363,54.44645,1971.9,1971.8,1.68118]
[1742594813559,50.1078,1971.9,1971.8,1.68118]
[1742594813862,50.207,1971.9,1971.8,1.68118]
[1742594814162,3.307,1972.1,1972.0,1.01458]
[1742594814563,3.307,1972.1,1972.0,2.98428]
[1742594814764,4.32153,1972.1,1972.0,2.98428]
[1742594817164,1.01468,1971.8,1971.7,2.02848391]
[1742594817369,1.01473,1971.7,1971.6,0.6848]
[1742594817570,2.38203,1971.7,1971.6,1.9763]
[1742594817867,3.30803503,1971.7,1971.6,1.9763]
[1742594820666,3.38782153,1971.7,1971.6,1.9763]
[1742594821071,1.01484,1971.5,1971.4,0.00759648]
[1742594821273,7.6214265,1971.5,1971.4,0.00759648]
[1742594821573,8.54743153,1971.5,1971.4,0.00759648]
[1742594821778,9.88713153,1971.5,1971.4,0.00759648]
[1742594823175,9.88712159,1971.5,1971.4,0.00759648]
[1742594824379,1.01499,1971.2,1971.1,1.3786]
[1742594824574,7.54479,1971.2,1971.1,1.3786]
[1742594824877,1.01509,1971.0,1970.9,0.6712]
[1742594825071,7.54489,1971.0,1970.9,0.6712]
[1742594826279,8.96049,1971.0,1970.9,2.0498]
[1742594826874,8.96049,1971.0,1970.9,3.06495]
[1742594827077,8.96049,1971.0,1970.9,2.0498]
[1742594829376,5.07604,1970.8,1970.1,4.56737391]
[1742594829583,4.22315,1970.5,1970.4,1.3043]
[1742594829883,7.54615,1970.5,1970.4,1.3043]
[1742594830074,6.5308,1970.5,1970.2,1.01547]
[1742594830273,6.5308,1970.5,1969.9,3.84345]
[1742594830274,4.22328,1970.3,1969.9,3.84345]
[1742594830480,3.34,1970.2,1970.1,1.01556]
[1742594830672,3.34,1970.2,1970.1,2.37216]
[1742594830973,3.34,1970.2,1970.1,3.67646]
[1742594831171,1.01551,1970.2,1970.1,3.67646]
[1742594831569,1.01551,1970.2,1970.1,2.6609]
[1742594832079,1.01551,1970.2,1970.1,3.67646]
[1742594832975,7.9433,1970.3,1970.1,3.67646]
[1742594832976,7.9433,1970.3,1970.1,2.6609]
[1742594833175,8.95879,1970.3,1970.2,2.36101]
[1742594833583,8.95879,1970.3,1970.2,1.3455]
[1742594834182,1.01551,1970.2,1970.1,0.6781]
[1742594834483,1.01571,1969.8,1969.7,12.92810051]
[1742594834682,1.01571,1969.8,1969.7,1.01573]
[1742594834683,3.341,1969.8,1969.7,1.01573]
[1742594834986,4.35671,1969.8,1969.7,1.01573]
[1742594835482,3.341,1969.8,1969.7,1.01573]
[1742594835780,0.00759648,1969.9,1969.8,1.01571]
[1742594835972,2.28059648,1969.9,1969.8,41.81571]
[1742594836784,3.29625648,1969.9,1969.8,41.81571]
[1742594837486,2.28059648,1969.9,1969.8,41.81571]
[1742594837685,3.29625648,1969.9,1969.8,41.81571]
[1742594837891,2.28059648,1969.9,1969.8,41.81571]
[1742594838186,3.29625648,1969.9,1969.8,41.81571]
[1742594838784,2.28059648,1969.9,1969.8,41.81571]
[1742594839085,3.29625648,1969.9,1969.8,41.81571]
[1742594839488,2.28059648,1969.9,1969.8,41.81571]
[1742594840881,3.29625648,1969.9,1969.8,41.81571]
[1742594841289,4.69015648,1969.9,1969.8,41.81571]
[1742594841489,2.28059648,1969.9,1969.8,41.81571]
[1742594841891,3.29625648,1969.9,1969.8,41.81571]
[1742594842501,4.69485648,1969.9,1969.8,41.81571]
[1742594842710,1.01571,1969.8,1969.7,2.39402648]
[1742594842895,2.41431,1969.8,1969.7,2.39402648]
[1742594843292,7.1064,1969.8,1969.2,2.02848391]
[1742594843495,1.01596,1969.4,1969.3,1.01593]
[1742594843696,3.356,1969.4,1969.3,6.85857]
[1742594843898,2.4144,1969.7,1969.6,1.01582]
[1742594844195,1.01587,1969.6,1969.5,1.01583]
[1742594844390,4.7586,1969.7,1969.5,2.32883]
[1742594844597,5.77441,1969.7,1969.6,1.01582]
[1742594844797,5.77441,1969.7,1969.6,2.41152]
[1742594845298,3.36,1969.7,1969.6,2.41152]
[1742594845493,46.936,1969.9,1969.8,1.01571]
[1742594845700,51.3117,1969.9,1969.8,1.01571]
[1742594846097,51.3117,1969.9,1969.8,2.41141]
[1742594848606,52.7189,1969.9,1969.8,2.41141]
[1742594848906,50.296,1969.9,1969.8,2.41141]
[1742594849107,51.31166,1969.9,1969.8,2.41141]
[1742594849498,51.31166,1969.9,1969.8,1.3957]
[1742594849698,52.71886,1969.9,1969.8,2.41141]
[1742594850810,52.71886,1969.9,1969.8,1.3957]
[1742594851106,52.71886,1969.9,1969.8,2.41141]
[1742594851804,51.7032,1969.9,1969.8,2.41141]
[1742594852104,52.71886,1969.9,1969.8,2.41141]
[1742594852706,51.7032,1969.9,1969.8,2.41141]
[1742594853009,50.296,1969.9,1969.8,2.41141]
[1742594853409,51.31166,1969.9,1969.8,2.41141]
[1742594855310,50.296,1969.9,1969.8,2.41141]
[1742594855706,51.31166,1969.9,1969.8,2.41141]
[1742594855906,50.296,1969.9,1969.8,2.41141]
[1742594856515,51.31166,1969.9,1969.8,2.41141]
[1742594857016,50.296,1969.9,1969.8,2.41141]
[1742594857214,51.31166,1969.9,1969.8,2.41141]
[1742594860116,50.296,1969.9,1969.8,2.41141]
[1742594860316,51.31166,1969.9,1969.8,2.41141]
[1742594861720,50.296,1969.9,1969.8,2.41141]
[1742594861925,51.31166,1969.9,1969.8,2.41141]
[1742594862115,50.296,1969.9,1969.8,2.41141]
[1742594862422,51.31166,1969.9,1969.8,2.41141]
[1742594863619,50.296,1969.9,1969.8,2.41141]
[1742594863824,51.31166,1969.9,1969.8,2.41141]
[1742594864727,50.296,1969.9,1969.8,2.41141]
[1742594865122,51.6825,1969.9,1969.8,2.41141]
[1742594865427,52.69816,1969.9,1969.8,2.41141]
[1742594868823,5.76216,1969.9,1969.8,2.41141]
[1742594871325,4.7465,1969.9,1969.8,2.41141]
[1742594871629,5.76216,1969.9,1969.8,2.41141]
[1742594872117,4.7465,1969.9,1969.8,2.41141]
[1742594872323,5.76216,1969.9,1969.8,2.41141]
[1742594873725,6.68997685,1969.9,1969.8,2.41141]
[1742594874128,1.01576,1969.8,1969.7,1.01572]
[1742594874325,3.28377685,1969.8,1969.7,1.01572]
[1742594875033,1.01576,1969.7,1969.6,2.31847]
[1742594875225,6.33526,1969.7,1969.6,2.31847]
[1742594875427,9.45526428,1969.7,1969.1,4.56856391]
[1742594875624,6.46518428,1969.6,1969.5,1.01587]
[1742594875827,3.25738428,1969.6,1969.5,1.01587]
[1742594876131,1.3136,1969.6,1969.5,1.01587]
[1742594876328,2.32942,1969.6,1969.5,1.01587]
[1742594876925,1.3136,1969.6,1969.5,1.01587]
[1742594877536,1.3136,1969.6,1969.5,1.69107]
[1742594878334,2.32942,1969.6,1969.5,1.69107]
[1742594878539,3.25712158,1969.6,1969.5,1.01587]
[1742594878838,1.01587,1969.5,1969.4,1.01588]
[1742594879034,1.01597,1969.4,1969.3,1.01593]
[1742594879338,1.72707,1969.4,1969.3,1.01593]
[1742594879532,3.10687,1969.4,1969.3,1.01593]
[1742594879942,1.3798,1969.4,1969.3,1.01593]
[1742594880236,2.39572,1969.4,1969.3,1.01593]
[1742594882639,1.3798,1969.4,1969.3,1.01593]
[1742594882833,2.39572,1969.4,1969.3,1.01593]
[1742594883026,1.3798,1969.4,1969.3,1.01593]
[1742594883534,4.6719,1969.6,1969.5,1.01587]
[1742594883939,4.6719,1969.6,1969.5,2.35297]
[1742594885432,5.68772,1969.6,1969.5,2.35297]
[1742594887845,3.318,1969.6,1969.5,2.35297]
[1742594888046,6.30944,1969.8,1969.7,1.01576]
[1742594888244,4.98534,1969.8,1969.7,1.01576]
[1742594888744,3.9696,1969.8,1969.7,1.01576]
[1742594888930,3.9686,1969.8,1969.7,1.01576]
[1742594889137,4.32767,1969.9,1969.8,1.01571]
[1742594889947,3.312,1969.9,1969.8,1.01571]
[1742594890841,0.00759648,1970.0,1969.9,1.01566]
[1742594891246,1.02320648,1970.0,1969.9,1.01566]
[1742594891448,0.00759648,1970.0,1969.9,1.01566]
[1742594894141,50.253,1970.3,1970.2,1.01551]
[1742594894540,1.01542,1970.4,1970.3,1.01545]
[1742594894939,3.2078,1970.6,1970.4,1.0154]
[1742594895141,4.32638,1970.5,1970.4,1.0154]
[1742594895442,1.0154,1970.4,1970.3,0.00761673]
[1742594895650,4.9203,1970.4,1970.3,0.00761673]
[1742594895842,6.50121267,1970.4,1970.3,0.00761673]
[1742594896637,5.575,1970.4,1970.3,0.00761673]
[1742594896837,5.65476898,1970.4,1970.3,0.00761673]
[1742594897035,5.65476921,1970.4,1970.3,0.00761673]
[1742594897249,5.65476921,1970.4,1969.8,2.53926]
[1742594897250,1.01571,1969.9,1969.8,1.01566]
[1742594898644,1.01571,1969.9,1969.8,2.40466]
[1742594899456,1.01571,1969.9,1969.8,1.389]
[1742594899745,4.22351,1969.9,1969.8,1.389]
[1742594900452,4.90281,1969.9,1969.8,1.389]
[1742594900754,4.90281,1969.9,1969.8,2.40471]
[1742594901952,4.90281,1969.9,1969.8,1.389]
[1742594902354,4.90281,1969.9,1969.8,2.40471]
[1742594902955,4.90281,1969.9,1969.8,1.389]
[1742594903256,4.90281,1969.9,1969.8,2.40471]
[1742594903956,4.90281,1969.9,1969.8,1.389]
[1742594904160,7.15389793,1969.9,1969.8,1.389]
[1742594904655,6.22831,1969.9,1969.8,1.389]
[1742594904852,7.15356995,1969.9,1969.8,1.389]
[1742594906158,3.94576995,1969.9,1969.8,1.389]
[1742594906360,7.15356995,1969.9,1969.8,1.389]
[1742594909260,6.22831,1969.9,1969.8,1.389]
[1742594909658,1.01571,1969.9,1969.8,2.40471]
[1742594909859,2.39691,1969.9,1969.8,2.40471]
[1742594910055,1.01562,1970.0,1969.9,1.01561]
[1742594910360,1.01576,1969.8,1969.7,1.01572]
[1742594910757,7.52951,1969.9,1969.8,1.01571]
[1742594910958,5.70291,1969.9,1969.8,1.01571]
[1742594913763,5.70291,1969.9,1969.8,1.68161]
[1742594913964,1.01571,1969.8,1969.7,1.01573]
[1742594914264,2.39181,1969.8,1969.7,1.01573]
[1742594917262,1.01564,1970.0,1969.9,1.01561]
[1742594917565,5.64574,1970.0,1969.9,1.01561]
[1742594921979,1.01564,1970.0,1969.9,1.01561]
[1742594922166,6.53432356,1970.1,1970.0,1.01561]
[1742594922370,9.82832356,1970.1,1970.0,1.01561]
[1742594924673,8.81271356,1970.1,1969.9,1.3014]
[1742594924877,1.94182356,1970.0,1969.9,2.31702]
[1742594925075,3.34772356,1970.0,1969.9,2.31702]
[1742594925768,3.34772356,1970.0,1969.9,2.96182]
[1742594926178,3.34772356,1970.0,1969.9,1.3014]
[1742594926372,4.69032356,1970.0,1969.9,1.3014]
[1742594927273,4.69032356,1970.0,1969.9,2.31706]
[1742594928182,3.34772356,1970.0,1969.9,2.31706]
[1742594928487,3.34772356,1970.0,1969.9,2.97886]
[1742594930582,3.34772356,1970.0,1969.9,1.9632]
[1742594930778,3.34772356,1970.0,1969.9,2.97886]
[1742594931182,3.34772356,1970.0,1969.9,1.9632]
[1742594932383,4.72452356,1970.0,1969.9,1.3014]
[1742594937385,4.72452356,1970.0,1969.9,2.31706]
[1742594937586,3.70891356,1970.0,1969.9,2.31706]
[1742594937783,4.01402356,1970.0,1969.9,2.31706]
[1742594938088,4.20521356,1970.0,1969.9,2.31706]
[1742594938279,5.22082356,1970.0,1969.9,2.31706]
[1742594939088,6.59552356,1970.0,1969.9,2.31706]
[1742594939590,5.22082356,1970.0,1969.9,2.31706]
[1742594940787,6.59552356,1970.0,1969.9,2.31706]
[1742594946490,6.59552356,1970.0,1969.9,3.02216]
[1742594949391,6.59552356,1970.0,1969.9,1.3014]
[1742594949592,7.28492356,1970.0,1969.9,1.3014]
[1742594949798,7.28492356,1970.0,1969.9,2.31706]
[1742594949988,7.28492356,1970.0,1969.9,1.3014]
[1742594950391,7.28492356,1970.0,1969.9,2.31706]
[1742594950698,7.28492356,1970.0,1969.9,1.3014]
[1742594950891,4.00592356,1970.0,1969.9,1.3014]
[1742594951289,4.68192356,1970.0,1969.9,1.3014]
[1742594951797,4.68192356,1970.0,1969.9,2.31706]
[1742594952200,7.95392356,1970.0,1969.9,2.31706]
[1742594952697,7.27792356,1970.0,1969.9,1.3014]
[1742594952899,7.27792356,1970.0,1969.9,2.31706]
[1742594953485,7.27792356,1970.0,1969.9,1.3014]
[1742594953990,7.27792356,1970.0,1969.9,2.31706]
[1742594954697,7.27792356,1970.0,1969.9,1.3014]
[1742594955493,7.27792356,1970.0,1969.9,2.31706]
[1742594957499,1.01571,1969.8,1969.7,0.7001]
[1742594957797,1.01571,1969.8,1969.7,1.71582]
[1742594957993,5.21046978,1969.8,1969.7,1.71582]
[1742594958794,6.59296978,1969.8,1969.7,2.0994]
[1742594958994,1.01582,1969.6,1969.5,3.04431391]
[1742594959391,4.28182,1969.6,1969.5,3.04431391]
[1742594960302,5.58112,1969.6,1969.5,4.39781391]
[1742594960504,6.50989044,1969.6,1969.5,1.3535]
[1742594962592,5.49407044,1969.6,1969.2,2.02848391]
[1742594962789,1.01602,1969.3,1969.2,1.3535]
[1742594962999,5.21179044,1969.3,1969.2,1.016]
[1742594963198,6.51109044,1969.3,1969.2,1.016]
[1742594964300,1.01602,1969.2,1969.1,1.71983]
[1742594964505,2.41292,1969.2,1969.1,1.71983]
[1742594967801,2.41292,1969.2,1969.1,1.71987]
[1742594968203,1.01607,1969.1,1969.0,1.7033]
[1742594968397,5.62307,1969.1,1969.0,1.7033]
[1742594969599,3.266,1969.1,1969.0,1.7033]
[1742594969797,4.28207,1969.1,1969.0,1.7033]
[1742594971404,3.266,1969.1,1969.0,1.7033]
[1742594971604,4.28207,1969.1,1969.0,1.7033]
[1742594972102,3.266,1969.1,1969.0,1.7033]
[1742594972503,4.89845,1969.4,1969.3,1.01597]
[1742594972697,5.66282,1969.4,1969.3,1.01597]
[1742594973007,4.28192,1969.4,1969.3,1.01597]
[1742594973403,1.01597,1969.3,1969.2,1.70788]
[1742594973599,2.39687,1969.3,1969.2,1.70788]
[1742594974409,5.66687,1969.3,1969.2,1.70788]
[1742594974605,2.39687,1969.3,1969.2,1.70788]
[1742594974799,5.66587,1969.3,1969.2,1.70788]
[1742594975407,4.28497,1969.3,1969.2,1.70788]
[1742594975809,5.64457,1969.3,1969.2,1.70788]
[1742594976602,4.6286,1969.3,1969.2,1.70788]
[1742594976811,5.64457,1969.3,1969.2,1.70788]
[1742594978009,4.28497,1969.3,1969.2,1.70788]
[1742594979104,5.67847,1969.3,1969.2,1.70788]
[1742594979798,1.69801,1969.5,1969.4,1.01592]
[1742594980107,47.97344673,1969.6,1969.5,1.01587]
[1742594980314,50.22361673,1969.6,1969.5,1.01587]
[1742594980708,46.95761673,1969.6,1969.5,1.01587]
[1742594981109,46.95761673,1969.6,1969.5,1.66597]
[1742594981811,0.00761673,1969.6,1969.5,1.66597]
[1742594985012,0.00761673,1969.6,1969.5,2.97227]
[1742594985206,0.00761673,1969.6,1969.5,6.18007]
[1742594987913,0.00761673,1969.6,1969.5,2.97227]
[1742594988911,4.28269,1969.9,1969.5,2.97227]
[1742594988912,2.53927,1969.9,1969.5,1.9564]
[1742594989117,1.3939,1969.7,1969.6,1.3573]
[1742594989312,1.3939,1969.7,1969.6,2.37307]
[1742594989313,2.40972,1969.7,1969.6,2.37307]
[1742594989614,1.3939,1969.7,1969.6,3.05407]
[1742594990516,2.40966,1969.7,1969.6,3.05407]
[1742594993718,3.43778398,1969.7,1969.6,1.01577]
[1742594993917,4.08868398,1969.7,1969.6,2.42227]
[1742594994419,3.43778398,1969.7,1969.6,2.42227]
[1742594994918,2.40966,1969.7,1969.6,2.42227]
[1742594995320,3.43779768,1969.7,1969.6,2.42227]
[1742594995818,2.40966,1969.7,1969.6,2.42227]
[1742594996211,3.43784169,1969.7,1969.6,2.42227]
[1742594996815,2.40966,1969.7,1969.6,2.42227]
[1742594997219,3.43789205,1969.7,1969.6,2.42227]
[1742594999524,1.01607,1969.2,1969.0,2.54021]
[1742594999822,1.01607,1969.2,1969.1,2.3766]
[1742595000018,1.01607,1969.2,1969.1,1.016]
[1742595000221,4.05230205,1969.2,1969.1,1.016]
[1742595000521,1.01607,1969.1,1969.0,2.43829]
[1742595000711,2.95517,1969.1,1969.0,2.43829]
[1742595000912,6.23617,1969.1,1969.0,2.43829]
[1742595001220,7.26440205,1969.1,1969.0,43.23829]
[1742595001524,7.26440205,1969.1,1969.0,42.2222]
[1742595001717,10.47220205,1969.1,1969.0,42.2222]
[1742595002219,2.54032,1969.0,1968.4,4.56945391]
[1742595002418,1.01633,1968.6,1968.5,2.43852]
[1742595002922,0.00761673,1968.7,1968.6,1.01633]
[1742595003121,0.00761673,1968.7,1968.6,5.59873]
[1742595004914,0.00761673,1968.7,1968.6,43.19093]
[1742595005521,1.29421673,1968.7,1968.6,43.19093]
[1742595006325,0.00761673,1968.7,1968.6,43.19093]
[1742595008127,0.00761673,1968.7,1968.6,45.21941391]
[1742595009327,0.00761673,1968.7,1968.6,45.92831391]
[1742595011233,0.00761673,1968.7,1968.6,5.12831391]
[1742595012833,1.29951673,1968.7,1968.6,5.12831391]
[1742595013631,0.00761673,1968.7,1968.6,5.12831391]
[1742595014035,0.00761673,1968.7,1968.6,3.09983]
[1742595016838,3.2078,1969.5,1969.3,1.01597]
[1742595017038,51.27292,1969.4,1969.3,1.01597]
[1742595017339,51.96092,1969.4,1969.3,1.01597]
[1742595017541,52.66922,1969.4,1969.3,1.01597]
[1742595018141,53.99742,1969.4,1969.3,2.39217]
[1742595020635,49.6775,1969.4,1969.3,2.39217]
[1742595020942,48.2812,1969.4,1969.3,2.39217]
[1742595021138,51.5812,1969.4,1969.3,2.39217]
[1742595021342,4.6282,1969.4,1969.3,2.39217]
[1742595021845,3.30761673,1969.5,1969.4,1.01592]
[1742595022045,3.30761673,1969.5,1969.4,1.70322]
[1742595022237,3.30761673,1969.5,1969.4,3.09222]
[1742595023138,0.00761673,1969.5,1969.4,3.09222]
[1742595031764,0.00761673,1969.5,1969.4,5.12070391]
[1742595040070,4.98885,1969.8,1969.7,1.01576]
[1742595040470,0.6831,1969.8,1969.7,1.01576]
[1742595040767,51.26166,1969.9,1969.8,1.01571]
[1742595041271,52.28761408,1969.9,1969.8,1.01571]
[1742595041567,52.66325408,1969.9,1969.8,2.41321]
[1742595041962,51.6373,1969.9,1969.8,2.41321]
[1742595042271,1.3903,1969.9,1969.8,3.06641]
[1742595043270,2.41694569,1969.9,1969.8,3.06641]
[1742595043469,1.3903,1969.9,1969.8,3.06641]
[1742595045867,1.7358466,1970.0,1969.9,1.01566]
[1742595045868,0.00761673,1970.0,1969.9,1.01566]
[1742595046068,0.00761673,1970.0,1969.9,2.40736]
[1742595046373,0.00761673,1970.0,1969.9,4.43584391]
[1742595051073,3.9273,1970.3,1970.2,1.01551]
[1742595051271,0.6463,1970.3,1970.2,1.01551]
[1742595052469,2.013,1970.3,1970.2,2.41391]
[1742595052673,8.4968,1970.3,1969.9,2.02848391]
[1742595052873,1.01561,1970.0,1969.9,2.02848391]
[1742595053377,1.01571,1969.8,1969.7,1.01573]
[1742595054081,2.38241,1969.8,1969.7,1.01573]
[1742595054474,3.40884705,1969.8,1969.7,1.01573]
[1742595054980,2.38241,1969.8,1969.7,1.01573]
[1742595055171,1.01576,1969.7,1969.6,2.41418]
[1742595055378,2.35066,1969.7,1969.6,2.41418]
[1742595057484,1.3349,1969.7,1969.6,2.41418]
[1742595057881,2.37126,1969.9,1969.8,1.01571]
[1742595059186,3.77596,1969.9,1969.8,1.01571]
[1742595064690,1.01571,1969.8,1969.7,1.346]
[1742595064893,1.01581,1969.7,1969.6,1.01576]
[1742595065091,3.284,1969.7,1969.3,2.02848391]
[1742595065285,1.01592,1969.4,1969.3,2.02848391]